[Event "Titled Tuesday Blitz March 28 Late 2023"]
[White "Estremera Panos, Sergio"]
[Black "cryptoguru02"]
[WhiteFideId "2200864"]
[WhiteElo "2253"]
[BlackElo "2527"]
[Result "1/2-1/2"]
[Round "11"]
[TimeControl "180+2"]
[Date "2023.03.28"]
[WhiteClock "0:00:21"]
[BlackClock "0:00:17"]

1. d4 {[%clk 0:03:00]}  g6 {[%clk 0:02:59]} 2. c4 {[%clk 0:03:00]}  Bg7 {[%clk 0:02:59]} 3. Nc3 {[%clk 0:03:01]}  c5 {[%clk 0:02:59]} 4. d5 {[%clk 0:03:00]}  d6 {[%clk 0:02:59]} 5. e4 {[%clk 0:02:57]}  Nf6 {[%clk 0:02:57]} 6. Nf3 {[%clk 0:02:52]}  O-O {[%clk 0:02:56]} 7. Be2 {[%clk 0:02:50]}  a6 {[%clk 0:02:55]} 8. a4 {[%clk 0:02:50]}  e5 {[%clk 0:02:55]} 9. O-O {[%clk 0:02:49]}  Ne8 {[%clk 0:02:55]} 10. Ne1 {[%clk 0:02:50]}  Nd7 {[%clk 0:02:54]} 11. Nd3 {[%clk 0:02:49]}  f5 {[%clk 0:02:53]} 12. f3 {[%clk 0:02:44]}  f4 {[%clk 0:02:52]} 13. b4 {[%clk 0:02:38]}  b6 {[%clk 0:02:51]} 14. a5 {[%clk 0:02:36]}  cxb4 {[%clk 0:02:23]} 15. Nxb4 {[%clk 0:02:35]}  Nc5 {[%clk 0:02:21]} 16. Nc6 {[%clk 0:02:31]}  Qc7 {[%clk 0:02:21]} 17. Ba3 {[%clk 0:02:24]}  Bd7 {[%clk 0:02:09]} 18. Kh1 {[%clk 0:02:08]}  Bxc6 {[%clk 0:01:57]} 19. dxc6 {[%clk 0:02:08]}  Qxc6 {[%clk 0:01:54]} 20. Nd5 {[%clk 0:02:08]}  Rf7 {[%clk 0:01:37]} 21. axb6 {[%clk 0:02:06]}  Nf6 {[%clk 0:01:30]} 22. Bxc5 {[%clk 0:02:05]}  Qxc5 {[%clk 0:01:25]} 23. Qb3 {[%clk 0:01:54]}  Nxd5 {[%clk 0:01:17]} 24. cxd5 {[%clk 0:01:53]}  Rb7 {[%clk 0:01:14]} 25. Rfb1 {[%clk 0:01:49]}  a5 {[%clk 0:01:08]} 26. Qb5 {[%clk 0:01:35]}  Qxb5 {[%clk 0:00:57]} 27. Rxb5 {[%clk 0:01:36]}  Rab8 {[%clk 0:00:57]} 28. Raxa5 {[%clk 0:01:33]}  Rxb6 {[%clk 0:00:57]} 29. g3 {[%clk 0:01:23]}  Bf6 {[%clk 0:00:42]} 30. Kg2 {[%clk 0:01:13]}  Rxb5 {[%clk 0:00:38]} 31. Rxb5 {[%clk 0:01:13]}  Ra8 {[%clk 0:00:31]} 32. Rb6 {[%clk 0:01:00]}  Ra2 {[%clk 0:00:30]} 33. Rxd6 {[%clk 0:00:52]}  Rxe2+ {[%clk 0:00:25]} 34. Kf1 {[%clk 0:00:52]}  Rxh2 {[%clk 0:00:25]} 35. Rxf6 {[%clk 0:00:51]}  fxg3 {[%clk 0:00:25]} 36. d6 {[%clk 0:00:34]}  Rd2 {[%clk 0:00:24]} 37. f4 {[%clk 0:00:33]}  exf4 {[%clk 0:00:17]} 38. e5 {[%clk 0:00:34]}  g5 {[%clk 0:00:17]} 39. e6 {[%clk 0:00:23]}  Rxd6 {[%clk 0:00:17]} 40. e7 {[%clk 0:00:24]}  Rxf6 {[%clk 0:00:18]} 41. e8=Q+ {[%clk 0:00:24]}  Kg7 {[%clk 0:00:18]} 42. Qe7+ {[%clk 0:00:23]}  Kg6 {[%clk 0:00:18]} 43. Qe4+ {[%clk 0:00:23]}  Kg7 {[%clk 0:00:18]} 44. Qe7+ {[%clk 0:00:20]}  Kg6 {[%clk 0:00:18]} 45. Qe8+ {[%clk 0:00:21]}  Kg7 {[%clk 0:00:17]} 46. Qe7+ {[%clk 0:00:21]} 1/2-1/2


[Site "https://www.chess.com"]

[Event "Titled Tuesday Blitz March 28 Late 2023"]
[White "Karamsetty, Jeevan"]
[Black "Li, Hui"]
[WhiteFideId "2025337"]
[BlackFideId "15400310"]
[WhiteElo "2111"]
[BlackElo "1967"]
[Result "1/2-1/2"]
[Round "11"]
[TimeControl "180+2"]
[Date "2023.03.28"]
[WhiteClock "0:00:38"]
[BlackClock "0:00:27"]

1. e4 {[%clk 0:03:00]}  e5 {[%clk 0:02:59]} 2. Nf3 {[%clk 0:03:00]}  Nf6 {[%clk 0:02:59]} 3. Nxe5 {[%clk 0:02:59]}  d6 {[%clk 0:02:59]} 4. Nf3 {[%clk 0:02:59]}  Nxe4 {[%clk 0:02:57]} 5. Nc3 {[%clk 0:02:52]}  Nxc3 {[%clk 0:02:57]} 6. dxc3 {[%clk 0:02:52]}  Be7 {[%clk 0:02:57]} 7. Bd3 {[%clk 0:02:51]}  Nc6 {[%clk 0:02:56]} 8. O-O {[%clk 0:02:51]}  O-O {[%clk 0:02:55]} 9. Re1 {[%clk 0:02:48]}  Bf6 {[%clk 0:02:54]} 10. Bf4 {[%clk 0:02:39]}  Bg4 {[%clk 0:02:46]} 11. h3 {[%clk 0:02:39]}  Bh5 {[%clk 0:02:46]} 12. Be4 {[%clk 0:02:32]}  Bg6 {[%clk 0:02:43]} 13. Qd5 {[%clk 0:02:27]}  Re8 {[%clk 0:02:35]} 14. Bxg6 {[%clk 0:02:19]}  hxg6 {[%clk 0:02:34]} 15. Qb5 {[%clk 0:02:19]}  Rb8 {[%clk 0:02:24]} 16. Rad1 {[%clk 0:02:15]}  a6 {[%clk 0:02:21]} 17. Qa4 {[%clk 0:02:12]}  Qd7 {[%clk 0:02:19]} 18. Be3 {[%clk 0:02:01]}  Ne5 {[%clk 0:02:01]} 19. Qf4 {[%clk 0:01:46]}  Nxf3+ {[%clk 0:01:58]} 20. Qxf3 {[%clk 0:01:47]}  Qf5 {[%clk 0:01:47]} 21. Qe2 {[%clk 0:01:32]}  Bg5 {[%clk 0:01:41]} 22. Qc4 {[%clk 0:01:30]}  Bxe3 {[%clk 0:01:36]} 23. fxe3 {[%clk 0:01:31]}  Qxc2 {[%clk 0:01:06]} 24. Qxc7 {[%clk 0:01:26]}  Qxb2 {[%clk 0:01:03]} 25. Rf1 {[%clk 0:01:20]}  Rf8 {[%clk 0:00:56]} 26. Rxf7 {[%clk 0:01:14]}  Rxf7 {[%clk 0:00:56]} 27. Qxb8+ {[%clk 0:01:14]}  Rf8 {[%clk 0:00:56]} 28. Qxd6 {[%clk 0:01:13]}  Qxc3 {[%clk 0:00:44]} 29. Qe6+ {[%clk 0:01:10]}  Kh7 {[%clk 0:00:39]} 30. Rd4 {[%clk 0:01:06]}  Qc1+ {[%clk 0:00:28]} 31. Kh2 {[%clk 0:01:05]}  Qc7+ {[%clk 0:00:28]} 32. Kg1 {[%clk 0:00:47]}  Qc1+ {[%clk 0:00:27]} 33. Kh2 {[%clk 0:00:47]}  Qc7+ {[%clk 0:00:27]} 34. Kg1 {[%clk 0:00:38]}  Qc1+ {[%clk 0:00:27]} 1/2-1/2


[Site "https://www.chess.com"]

[Event "Titled Tuesday Blitz March 28 Late 2023"]
[White "Dubreuil, Julien"]
[Black "Papayan, Oleg"]
[WhiteFideId "621285"]
[BlackFideId "4193911"]
[WhiteElo "2308"]
[BlackElo "2153"]
[Result "1-0"]
[Round "11"]
[TimeControl "180+2"]
[Date "2023.03.28"]
[WhiteClock "0:00:54"]
[BlackClock "0:00:18"]

1. e4 {[%clk 0:03:00]}  d5 {[%clk 0:03:00]} 2. exd5 {[%clk 0:03:00]}  Qxd5 {[%clk 0:03:01]} 3. Nc3 {[%clk 0:03:00]}  Qa5 {[%clk 0:03:02]} 4. Bc4 {[%clk 0:03:00]}  Nf6 {[%clk 0:03:02]} 5. d3 {[%clk 0:03:00]}  a6 {[%clk 0:03:02]} 6. Bd2 {[%clk 0:03:00]}  b5 {[%clk 0:03:02]} 7. Nxb5 {[%clk 0:02:58]}  Qb6 {[%clk 0:03:03]} 8. Nc3 {[%clk 0:02:57]}  Qxb2 {[%clk 0:03:03]} 9. Rb1 {[%clk 0:02:51]}  Qa3 {[%clk 0:03:03]} 10. Nf3 {[%clk 0:02:50]}  e6 {[%clk 0:02:48]} 11. O-O {[%clk 0:02:49]}  Qd6 {[%clk 0:02:41]} 12. Ng5 {[%clk 0:02:33]}  Be7 {[%clk 0:02:35]} 13. Qf3 {[%clk 0:02:31]}  c6 {[%clk 0:02:31]} 14. Nce4 {[%clk 0:02:30]}  Qd7 {[%clk 0:02:06]} 15. Nxf7 {[%clk 0:02:27]}  Nxe4 {[%clk 0:01:44]} 16. Qxe4 {[%clk 0:02:11]}  Kxf7 {[%clk 0:01:42]} 17. Rxb8 {[%clk 0:02:09]}  Rxb8 {[%clk 0:01:25]} 18. Qf4+ {[%clk 0:02:08]}  Bf6 {[%clk 0:01:25]} 19. Qxb8 {[%clk 0:02:08]}  Rd8 {[%clk 0:01:03]} 20. Re1 {[%clk 0:02:07]}  Qd6 {[%clk 0:01:01]} 21. Qb3 {[%clk 0:02:00]}  c5 {[%clk 0:00:53]} 22. h3 {[%clk 0:01:49]}  Bd7 {[%clk 0:00:50]} 23. Qb7 {[%clk 0:01:16]}  Bd4 {[%clk 0:00:37]} 24. Rxe6 {[%clk 0:01:09]}  Bxf2+ {[%clk 0:00:22]} 25. Kxf2 {[%clk 0:00:56]}  Qd4+ {[%clk 0:00:19]} 26. Be3 {[%clk 0:00:54]}  Qh4+ {[%clk 0:00:18]} 27. g3 {[%clk 0:00:54]} 1-0


[Site "https://www.chess.com"]

[Event "Titled Tuesday Blitz March 28 Late 2023"]
[White "Estrada Nieto, Julian"]
[Black "Rose, Felix"]
[WhiteFideId "5101018"]
[BlackFideId "5105722"]
[WhiteElo "2176"]
[BlackElo "2039"]
[Result "1-0"]
[Round "11"]
[TimeControl "180+2"]
[Date "2023.03.28"]
[WhiteClock "0:00:26"]
[BlackClock "0:00:01"]

1. e4 {[%clk 0:03:00]}  e5 {[%clk 0:02:56]} 2. Nf3 {[%clk 0:03:01]}  Nc6 {[%clk 0:02:57]} 3. Bb5 {[%clk 0:03:01]}  a6 {[%clk 0:02:53]} 4. Ba4 {[%clk 0:03:01]}  Nf6 {[%clk 0:02:53]} 5. O-O {[%clk 0:03:01]}  Be7 {[%clk 0:02:53]} 6. d3 {[%clk 0:03:01]}  b5 {[%clk 0:02:52]} 7. Bb3 {[%clk 0:03:01]}  d6 {[%clk 0:02:48]} 8. a4 {[%clk 0:03:01]}  Bd7 {[%clk 0:02:44]} 9. Nc3 {[%clk 0:02:46]}  Na5 {[%clk 0:02:33]} 10. Ba2 {[%clk 0:02:42]}  b4 {[%clk 0:02:24]} 11. Nd5 {[%clk 0:02:41]}  Rb8 {[%clk 0:01:48]} 12. Bd2 {[%clk 0:02:30]}  c5 {[%clk 0:01:32]} 13. Nxf6+ {[%clk 0:02:17]}  Bxf6 {[%clk 0:01:32]} 14. Bd5 {[%clk 0:02:16]}  O-O {[%clk 0:01:24]} 15. Be3 {[%clk 0:01:50]}  b3 {[%clk 0:01:14]} 16. cxb3 {[%clk 0:01:29]}  Qb6 {[%clk 0:01:01]} 17. Nd2 {[%clk 0:01:26]}  Be6 {[%clk 0:00:56]} 18. Nc4 {[%clk 0:01:20]}  Nxc4 {[%clk 0:00:53]} 19. dxc4 {[%clk 0:01:15]}  Qxb3 {[%clk 0:00:17]} 20. Bxe6 {[%clk 0:01:14]}  Qxd1 {[%clk 0:00:16]} 21. Rfxd1 {[%clk 0:01:03]}  fxe6 {[%clk 0:00:15]} 22. Rxd6 {[%clk 0:01:03]}  Rxb2 {[%clk 0:00:13]} 23. Rxa6 {[%clk 0:00:57]}  Rfb8 {[%clk 0:00:13]} 24. g3 {[%clk 0:00:55]}  Rb1+ {[%clk 0:00:12]} 25. Rxb1 {[%clk 0:00:55]}  Rxb1+ {[%clk 0:00:13]} 26. Kg2 {[%clk 0:00:56]}  Rb4 {[%clk 0:00:12]} 27. a5 {[%clk 0:00:44]}  Rxc4 {[%clk 0:00:13]} 28. Kf3 {[%clk 0:00:44]}  Kf7 {[%clk 0:00:10]} 29. Rc6 {[%clk 0:00:38]}  Be7 {[%clk 0:00:07]} 30. Rc7 {[%clk 0:00:31]}  Kf6 {[%clk 0:00:06]} 31. a6 {[%clk 0:00:31]}  Ra4 {[%clk 0:00:06]} 32. a7 {[%clk 0:00:29]}  c4 {[%clk 0:00:07]} 33. Rc8 {[%clk 0:00:27]}  Rxa7 {[%clk 0:00:01]} 34. Bxa7 {[%clk 0:00:26]} 1-0


[Site "https://www.chess.com"]

[Event "Titled Tuesday Blitz March 28 Late 2023"]
[White "Kornyukov, Alexey"]
[Black "Romero Pallares, Daniel"]
[WhiteFideId "4150457"]
[BlackFideId "32025637"]
[WhiteElo "2352"]
[BlackElo "2195"]
[Result "0-1"]
[Round "11"]
[TimeControl "180+2"]
[Date "2023.03.28"]
[WhiteClock "0:00:01"]
[BlackClock "0:00:06"]

1. d4 {[%clk 0:03:00]}  g6 {[%clk 0:02:55]} 2. c4 {[%clk 0:02:58]}  Bg7 {[%clk 0:02:51]} 3. e4 {[%clk 0:02:58]}  d6 {[%clk 0:02:48]} 4. Nc3 {[%clk 0:02:57]}  e5 {[%clk 0:02:48]} 5. d5 {[%clk 0:02:43]}  a5 {[%clk 0:02:48]} 6. Bd3 {[%clk 0:02:37]}  Na6 {[%clk 0:02:47]} 7. Nge2 {[%clk 0:02:23]}  Bd7 {[%clk 0:02:38]} 8. O-O {[%clk 0:02:22]}  Qh4 {[%clk 0:02:31]} 9. Be3 {[%clk 0:02:05]}  Bh6 {[%clk 0:02:28]} 10. Qd2 {[%clk 0:02:01]}  Bxe3 {[%clk 0:02:01]} 11. fxe3 {[%clk 0:01:59]}  Ne7 {[%clk 0:01:44]} 12. Rf3 {[%clk 0:01:20]}  O-O {[%clk 0:01:39]} 13. Raf1 {[%clk 0:01:20]}  f5 {[%clk 0:01:31]} 14. Ng3 {[%clk 0:01:12]}  Nc5 {[%clk 0:01:17]} 15. Bc2 {[%clk 0:00:52]}  Kh8 {[%clk 0:00:59]} 16. a3 {[%clk 0:00:45]}  a4 {[%clk 0:00:57]} 17. exf5 {[%clk 0:00:25]}  gxf5 {[%clk 0:00:57]} 18. Bxf5 {[%clk 0:00:22]}  Nxf5 {[%clk 0:00:54]} 19. Nxf5 {[%clk 0:00:22]}  Qxc4 {[%clk 0:00:39]} 20. Nxd6 {[%clk 0:00:15]}  cxd6 {[%clk 0:00:30]} 21. Rxf8+ {[%clk 0:00:15]}  Rxf8 {[%clk 0:00:31]} 22. Rxf8+ {[%clk 0:00:15]}  Kg7 {[%clk 0:00:31]} 23. Qf2 {[%clk 0:00:15]}  Ne4 {[%clk 0:00:14]} 24. Qf7+ {[%clk 0:00:13]}  Kh6 {[%clk 0:00:13]} 25. Qxd7 {[%clk 0:00:11]}  Qd3 {[%clk 0:00:07]} 26. Qe6+ {[%clk 0:00:05]}  Kg7 {[%clk 0:00:05]} 27. Qf7+ {[%clk 0:00:05]}  Kh6 {[%clk 0:00:06]} 28. Nxe4 {[%clk 0:00:02]}  Qxe3+ {[%clk 0:00:05]} 29. Qf2 {[%clk 0:00:01]}  Qxe4 {[%clk 0:00:05]} 30. Qg3 {[%clk 0:00:01]}  Qb1+ {[%clk 0:00:06]} 0-1


[Site "https://www.chess.com"]

[Event "Titled Tuesday Blitz March 28 Late 2023"]
[White "Fernandez Sanchez, Mario Andres"]
[Black "Koksal, Ege"]
[WhiteFideId "6501621"]
[BlackFideId "6317626"]
[WhiteElo "2050"]
[BlackElo "2226"]
[Result "0-1"]
[Round "11"]
[TimeControl "180+2"]
[Date "2023.03.28"]
[WhiteClock "0:00:36"]
[BlackClock "0:00:17"]

1. d4 {[%clk 0:03:00]}  d5 {[%clk 0:02:57]} 2. Bf4 {[%clk 0:03:01]}  c6 {[%clk 0:02:57]} 3. e3 {[%clk 0:03:00]}  Nf6 {[%clk 0:02:57]} 4. c4 {[%clk 0:03:00]}  Bf5 {[%clk 0:02:51]} 5. Qb3 {[%clk 0:02:59]}  Qb6 {[%clk 0:02:51]} 6. c5 {[%clk 0:02:59]}  Qxb3 {[%clk 0:02:52]} 7. axb3 {[%clk 0:03:00]}  Bxb1 {[%clk 0:02:52]} 8. Rxb1 {[%clk 0:03:01]}  Nbd7 {[%clk 0:02:52]} 9. Nf3 {[%clk 0:03:00]}  Ne4 {[%clk 0:02:51]} 10. b4 {[%clk 0:02:58]}  a6 {[%clk 0:02:51]} 11. Ra1 {[%clk 0:02:58]}  Rc8 {[%clk 0:02:51]} 12. Bd3 {[%clk 0:02:55]}  e6 {[%clk 0:02:49]} 13. Bxe4 {[%clk 0:02:54]}  dxe4 {[%clk 0:02:50]} 14. Nd2 {[%clk 0:02:54]}  Nf6 {[%clk 0:02:50]} 15. Bg3 {[%clk 0:02:48]}  Be7 {[%clk 0:02:46]} 16. Nc4 {[%clk 0:02:48]}  Nd5 {[%clk 0:02:46]} 17. Ra4 {[%clk 0:02:47]}  f6 {[%clk 0:02:42]} 18. Bd6 {[%clk 0:02:45]}  Bd8 {[%clk 0:02:43]} 19. Ke2 {[%clk 0:02:42]}  Kd7 {[%clk 0:02:40]} 20. Nd2 {[%clk 0:02:38]}  h5 {[%clk 0:02:34]} 21. Nxe4 {[%clk 0:02:37]}  f5 {[%clk 0:02:34]} 22. Nd2 {[%clk 0:02:36]}  g5 {[%clk 0:02:23]} 23. Nc4 {[%clk 0:02:36]}  h4 {[%clk 0:02:21]} 24. Be5 {[%clk 0:02:17]}  Rh7 {[%clk 0:02:20]} 25. f3 {[%clk 0:02:16]}  Be7 {[%clk 0:02:08]} 26. e4 {[%clk 0:02:12]}  fxe4 {[%clk 0:02:00]} 27. fxe4 {[%clk 0:02:13]}  Nf6 {[%clk 0:02:01]} 28. Nb6+ {[%clk 0:02:09]}  Kd8 {[%clk 0:02:00]} 29. Nxc8 {[%clk 0:02:09]}  Kxc8 {[%clk 0:02:01]} 30. Bxf6 {[%clk 0:02:05]}  Bxf6 {[%clk 0:02:02]} 31. Kd3 {[%clk 0:02:05]}  Rd7 {[%clk 0:02:02]} 32. b5 {[%clk 0:01:58]}  axb5 {[%clk 0:01:13]} 33. Rb4 {[%clk 0:01:57]}  Be5 {[%clk 0:01:10]} 34. Ke3 {[%clk 0:01:45]}  Bf4+ {[%clk 0:01:04]} 35. Kf3 {[%clk 0:01:45]}  Bc7 {[%clk 0:01:05]} 36. Rf1 {[%clk 0:01:35]}  Bxh2 {[%clk 0:01:00]} 37. Kg4 {[%clk 0:01:30]}  Bf4 {[%clk 0:01:00]} 38. Rf3 {[%clk 0:01:20]}  Kc7 {[%clk 0:00:56]} 39. Rd3 {[%clk 0:01:17]}  Rd8 {[%clk 0:00:42]} 40. Rbb3 {[%clk 0:01:11]}  Bc1 {[%clk 0:00:30]} 41. Rd1 {[%clk 0:01:06]}  Bf4 {[%clk 0:00:29]} 42. Rbd3 {[%clk 0:00:57]}  Ra8 {[%clk 0:00:20]} 43. Ra3 {[%clk 0:00:51]}  Rd8 {[%clk 0:00:20]} 44. b4 {[%clk 0:00:46]}  Rd7 {[%clk 0:00:17]} 45. Rad3 {[%clk 0:00:39]}  Re7 {[%clk 0:00:16]} 46. d5 {[%clk 0:00:35]}  exd5 {[%clk 0:00:17]} 47. exd5 {[%clk 0:00:36]}  Re4 {[%clk 0:00:18]} 48. Rg3 {[%clk 0:00:36]}  Bxg3+ {[%clk 0:00:17]} 0-1


[Site "https://www.chess.com"]

[Event "Titled Tuesday Blitz March 28 Late 2023"]
[White "Fiorito, Francisco"]
[Black "ArtemDyachuk"]
[WhiteFideId "180165"]
[WhiteElo "2341"]
[BlackElo "2405"]
[Result "1-0"]
[Round "11"]
[TimeControl "180+2"]
[Date "2023.03.28"]
[WhiteClock "0:02:40"]
[BlackClock "0:00:01"]

1. d4 {[%clk 0:03:00]}  Nf6 {[%clk 0:02:59]} 2. Nc3 {[%clk 0:03:01]}  d5 {[%clk 0:02:57]} 3. Bf4 {[%clk 0:03:01]}  g6 {[%clk 0:02:53]} 4. e3 {[%clk 0:03:01]}  Bg7 {[%clk 0:02:53]} 5. Be2 {[%clk 0:03:01]}  O-O {[%clk 0:02:53]} 6. Nf3 {[%clk 0:03:02]}  a6 {[%clk 0:02:53]} 7. Ne5 {[%clk 0:03:02]}  b5 {[%clk 0:02:53]} 8. h4 {[%clk 0:03:02]}  h5 {[%clk 0:02:50]} 9. g4 {[%clk 0:03:00]}  hxg4 {[%clk 0:02:47]} 10. Nxg4 {[%clk 0:03:01]}  Nh5 {[%clk 0:02:39]} 11. Nh6+ {[%clk 0:02:58]}  Kh7 {[%clk 0:02:33]} 12. Bxh5 {[%clk 0:02:55]}  Bxh6 {[%clk 0:02:33]} 13. Bxh6 {[%clk 0:02:55]}  Kxh6 {[%clk 0:02:32]} 14. Bf3 {[%clk 0:02:56]}  e6 {[%clk 0:02:28]} 15. Qd2 {[%clk 0:02:56]}  Kg7 {[%clk 0:02:26]} 16. e4 {[%clk 0:02:55]}  dxe4 {[%clk 0:02:24]} 17. Nxe4 {[%clk 0:02:56]}  Bb7 {[%clk 0:02:21]} 18. h5 {[%clk 0:02:55]}  Rh8 {[%clk 0:02:20]} 19. O-O-O {[%clk 0:02:54]}  Qd5 {[%clk 0:02:06]} 20. hxg6 {[%clk 0:02:53]}  Qxa2 {[%clk 0:01:50]} 21. Qg5 {[%clk 0:02:50]}  Qa1+ {[%clk 0:00:06]} 22. Kd2 {[%clk 0:02:43]}  Qa5+ {[%clk 0:00:07]} 23. c3 {[%clk 0:02:43]}  Nd7 {[%clk 0:00:08]} 24. gxf7+ {[%clk 0:02:42]}  Kxf7 {[%clk 0:00:08]} 25. Bh5+ {[%clk 0:02:41]}  Rxh5 {[%clk 0:00:04]} 26. Qxh5+ {[%clk 0:02:40]}  Ke7 {[%clk 0:00:04]} 27. Qg5+ {[%clk 0:02:40]}  Ke8 {[%clk 0:00:01]} 28. Rh8+ {[%clk 0:02:40]} 1-0


[Site "https://www.chess.com"]

[Event "Titled Tuesday Blitz March 28 Late 2023"]
[White "ArturoCaceres"]
[Black "Graif, William"]
[BlackFideId "2609835"]
[WhiteElo "2396"]
[BlackElo "2205"]
[Result "0-1"]
[Round "11"]
[TimeControl "180+2"]
[Date "2023.03.28"]
[WhiteClock "0:00:07"]
[BlackClock "0:00:09"]

1. d4 {[%clk 0:02:27]}  Nf6 {[%clk 0:02:58]} 2. Bf4 {[%clk 0:02:27]}  c5 {[%clk 0:02:57]} 3. e3 {[%clk 0:02:28]}  Qb6 {[%clk 0:02:57]} 4. Nd2 {[%clk 0:02:27]}  cxd4 {[%clk 0:02:32]} 5. Ngf3 {[%clk 0:02:18]}  dxe3 {[%clk 0:02:10]} 6. Bxe3 {[%clk 0:02:15]}  Qa5 {[%clk 0:02:07]} 7. a3 {[%clk 0:02:10]}  d5 {[%clk 0:02:05]} 8. b4 {[%clk 0:02:10]}  Qc7 {[%clk 0:01:58]} 9. c4 {[%clk 0:02:04]}  e6 {[%clk 0:01:45]} 10. Rc1 {[%clk 0:02:02]}  Qd8 {[%clk 0:01:36]} 11. Be2 {[%clk 0:01:54]}  Be7 {[%clk 0:01:19]} 12. g4 {[%clk 0:01:51]}  Nxg4 {[%clk 0:01:15]} 13. Bd4 {[%clk 0:01:51]}  Bf6 {[%clk 0:01:06]} 14. Rg1 {[%clk 0:01:51]}  Bxd4 {[%clk 0:01:02]} 15. Nxd4 {[%clk 0:01:48]}  Nxf2 {[%clk 0:00:47]} 16. Qb3 {[%clk 0:01:18]}  Ne4 {[%clk 0:00:28]} 17. cxd5 {[%clk 0:00:57]}  Qh4+ {[%clk 0:00:24]} 18. Rg3 {[%clk 0:00:25]}  Nxg3 {[%clk 0:00:21]} 19. N2f3 {[%clk 0:00:10]}  Qd8 {[%clk 0:00:20]} 20. Bb5+ {[%clk 0:00:09]}  Bd7 {[%clk 0:00:19]} 21. dxe6 {[%clk 0:00:09]}  Bxb5 {[%clk 0:00:19]} 22. exf7+ {[%clk 0:00:09]}  Kf8 {[%clk 0:00:12]} 23. Ne6+ {[%clk 0:00:09]}  Ke7 {[%clk 0:00:10]} 24. Nxd8 {[%clk 0:00:10]}  Rxd8 {[%clk 0:00:11]} 25. hxg3 {[%clk 0:00:07]}  Nc6 {[%clk 0:00:11]} 26. Qe3+ {[%clk 0:00:07]}  Kf8 {[%clk 0:00:12]} 27. Qf4 {[%clk 0:00:07]}  Bd3 {[%clk 0:00:11]} 28. Rd1 {[%clk 0:00:07]}  Bg6 {[%clk 0:00:10]} 29. Rd6 {[%clk 0:00:06]}  Rxd6 {[%clk 0:00:10]} 30. Qxd6+ {[%clk 0:00:07]}  Kxf7 {[%clk 0:00:11]} 31. Ne5+ {[%clk 0:00:07]}  Nxe5 {[%clk 0:00:10]} 32. Qc7+ {[%clk 0:00:08]}  Kf8 {[%clk 0:00:09]} 33. Qd6+ {[%clk 0:00:07]}  Kf7 {[%clk 0:00:09]} 34. Qc7+ {[%clk 0:00:07]}  Kf8 {[%clk 0:00:09]} 35. Qxb7 {[%clk 0:00:08]}  Re8 {[%clk 0:00:09]} 36. Qxa7 {[%clk 0:00:07]}  Nc6+ {[%clk 0:00:09]} 0-1


[Site "https://www.chess.com"]

[Event "Titled Tuesday Blitz March 28 Late 2023"]
[White "Golubev, Mikhail"]
[Black "Smith, Garrett L"]
[WhiteFideId "14100983"]
[BlackFideId "2024829"]
[WhiteElo "2374"]
[BlackElo "2340"]
[Result "1-0"]
[Round "11"]
[TimeControl "180+2"]
[Date "2023.03.28"]
[WhiteClock "0:00:21"]
[BlackClock "0:00:39"]

1. e4 {[%clk 0:03:00]}  c5 {[%clk 0:02:59]} 2. Nf3 {[%clk 0:03:00]}  Nc6 {[%clk 0:02:59]} 3. Nc3 {[%clk 0:03:00]}  e5 {[%clk 0:02:59]} 4. Bc4 {[%clk 0:02:59]}  Be7 {[%clk 0:03:00]} 5. d3 {[%clk 0:02:59]}  Nf6 {[%clk 0:02:59]} 6. Ng5 {[%clk 0:02:59]}  O-O {[%clk 0:03:00]} 7. h4 {[%clk 0:02:56]}  Nd4 {[%clk 0:02:51]} 8. Nd5 {[%clk 0:02:48]}  h6 {[%clk 0:02:27]} 9. Nxf6+ {[%clk 0:02:37]}  Bxf6 {[%clk 0:02:26]} 10. Qh5 {[%clk 0:02:37]}  Ne6 {[%clk 0:02:07]} 11. Nf3 {[%clk 0:01:26]}  Nf4 {[%clk 0:02:02]} 12. Bxf4 {[%clk 0:01:23]}  exf4 {[%clk 0:02:02]} 13. e5 {[%clk 0:01:01]}  Be7 {[%clk 0:01:53]} 14. O-O-O {[%clk 0:01:01]}  d5 {[%clk 0:01:47]} 15. exd6 {[%clk 0:00:57]}  Qxd6 {[%clk 0:01:45]} 16. Ng5 {[%clk 0:00:47]}  Qf6 {[%clk 0:01:30]} 17. Rde1 {[%clk 0:00:40]}  Bf5 {[%clk 0:01:26]} 18. Nxf7 {[%clk 0:00:30]}  Rxf7 {[%clk 0:01:15]} 19. Qxf7+ {[%clk 0:00:29]}  Qxf7 {[%clk 0:01:06]} 20. Rxe7 {[%clk 0:00:28]}  Rf8 {[%clk 0:00:38]} 21. Rxf7 {[%clk 0:00:23]}  Rxf7 {[%clk 0:00:38]} 22. Re1 {[%clk 0:00:22]}  Kf8 {[%clk 0:00:38]} 23. Bxf7 {[%clk 0:00:22]}  Kxf7 {[%clk 0:00:39]} 24. Re5 {[%clk 0:00:21]} 1-0


[Site "https://www.chess.com"]